[Event "*** Titled Tuesday Blitz"]
[Site "Chess.com"]
[Date "2018.09.04"]
[Round "9"]
[White "Fins0905"]
[Black "Abund"]
[Result "0-1"]
[WhiteElo "2577"]
[BlackElo "2477"]
[TimeControl "180+2"]
[EndTime "15:41:38 PDT"]
[Termination "Abund won by resignation"]

1. d4 {[%clk 0:03:01.9]} 1... Nf6 {[%clk 0:03:00.3]} 2. c4 {[%clk 0:03:02]} 2...
e6 {[%clk 0:03:00.5]} 3. Nf3 {[%clk 0:03:02.7]} 3... b6 {[%clk 0:03:01.7]} 4. g3
{[%clk 0:03:03.5]} 4... Ba6 {[%clk 0:03:02.8]} 5. Qa4 {[%clk 0:03:03.9]} 5... c5
{[%clk 0:03:00.5]} 6. dxc5 {[%clk 0:03:03.2]} 6... bxc5 {[%clk 0:03:01.4]} 7.
Bg2 {[%clk 0:03:03.5]} 7... Bb7 {[%clk 0:03:01.2]} 8. O-O {[%clk 0:03:03.5]}
8... Be7 {[%clk 0:03:01]} 9. Nc3 {[%clk 0:03:00.9]} 9... O-O {[%clk 0:03:01.2]}
10. Rd1 {[%clk 0:03:02]} 10... Qb6 {[%clk 0:03:00.7]} 11. Bf4 {[%clk 0:02:56.2]}
11... Rd8 {[%clk 0:02:57.7]} 12. Rd2 {[%clk 0:02:41.5]} 12... d6 {[%clk
0:02:30.8]} 13. Rad1 {[%clk 0:02:39.8]} 13... Ne8 {[%clk 0:01:57.2]} 14. Qb5
{[%clk 0:02:01.7]} 14... Nc6 {[%clk 0:01:53.9]} 15. Qxb6 {[%clk 0:01:58.6]}
15... axb6 {[%clk 0:01:54.2]} 16. b3 {[%clk 0:02:00.1]} 16... Rd7 {[%clk
0:01:05.7]} 17. Na4 {[%clk 0:01:47.8]} 17... Ra6 {[%clk 0:01:05.6]} 18. e4
{[%clk 0:01:29.5]} 18... Nd4 {[%clk 0:00:59.5]} 19. Nxd4 {[%clk 0:01:23.7]}
19... cxd4 {[%clk 0:00:59.9]} 20. Rxd4 {[%clk 0:01:19.2]} 20... Bc6 {[%clk
0:00:59.8]} 21. Nc3 {[%clk 0:01:06]} 21... Rda7 {[%clk 0:00:35.6]} 22. R4d3
{[%clk 0:00:50.5]} 22... Bf6 {[%clk 0:00:21.6]} 23. a4 {[%clk 0:00:43.8]} 23...
Bxc3 {[%clk 0:00:17.3]} 24. Rxc3 {[%clk 0:00:44.5]} 24... e5 {[%clk 0:00:16.3]}
25. Be3 {[%clk 0:00:41.6]} 25... Rb7 {[%clk 0:00:15.9]} 26. Ra1 {[%clk
0:00:23.9]} 26... Kf8 {[%clk 0:00:16.3]} 27. Bf1 {[%clk 0:00:20.9]} 27... Ra8
{[%clk 0:00:10.4]} 28. f3 {[%clk 0:00:21.2]} 28... Nc7 {[%clk 0:00:10.1]} 29.
Rd3 {[%clk 0:00:19.6]} 29... Ke7 {[%clk 0:00:10.5]} 30. Rd2 {[%clk 0:00:18.1]}
30... Ne6 {[%clk 0:00:07.8]} 31. Rda2 {[%clk 0:00:12.5]} 31... Nc5 {[%clk
0:00:07.8]} 32. b4 {[%clk 0:00:10.8]} 32... Nb3 {[%clk 0:00:06.1]} 33. Rb1
{[%clk 0:00:11.3]} 33... Rxa4 {[%clk 0:00:06.7]} 34. b5 {[%clk 0:00:06.2]} 34...
Rxa2 {[%clk 0:00:04.6]} 35. bxc6 {[%clk 0:00:07.4]} 35... Rc7 {[%clk 0:00:05]}
36. Rxb3 {[%clk 0:00:08.5]} 36... Rxc6 {[%clk 0:00:06.1]} 37. Bxb6 {[%clk
0:00:06.2]} 37... Rc8 {[%clk 0:00:04.2]} 38. Bf2 {[%clk 0:00:06.1]} 38... g6
{[%clk 0:00:04.5]} 39. Rb7+ {[%clk 0:00:06.3]} 39... Kf8 {[%clk 0:00:05.2]} 40.
h4 {[%clk 0:00:05.5]} 40... Rc2 {[%clk 0:00:06]} 41. Rb6 {[%clk 0:00:04.6]}
41... Ke7 {[%clk 0:00:06.3]} 42. Rb7+ {[%clk 0:00:05.9]} 42... Kf8 {[%clk
0:00:06.6]} 43. Be3 {[%clk 0:00:07.3]} 43... Ra8 {[%clk 0:00:06.6]} 44. Bh6+
{[%clk 0:00:04.6]} 44... Ke8 {[%clk 0:00:06.8]} 45. Rb6 {[%clk 0:00:03.6]} 45...
Ke7 {[%clk 0:00:07.1]} 46. Rb7+ {[%clk 0:00:04.7]} 46... Ke8 {[%clk 0:00:08.1]}
47. Rb6 {[%clk 0:00:05.9]} 47... Ra1 {[%clk 0:00:08.4]} 48. Rxd6 {[%clk
0:00:03]} 48... Rxc4 {[%clk 0:00:08.8]} 49. Kg2 {[%clk 0:00:04.1]} 49... Rc2+
{[%clk 0:00:09.6]} 50. Bd2 {[%clk 0:00:04.4]} 50... Raa2 {[%clk 0:00:09]} 51.
Bb5+ {[%clk 0:00:04.8]} 51... Ke7 {[%clk 0:00:09.9]} 52. Rb6 {[%clk 0:00:04.4]}
52... Rxd2+ {[%clk 0:00:10.7]} 53. Kh3 {[%clk 0:00:05.7]} 53... h5 {[%clk
0:00:08.3]} 54. Rb7+ {[%clk 0:00:05.6]} 54... Kf6 {[%clk 0:00:08.4]} 55. Rb6+
{[%clk 0:00:03]} 55... Kg7 {[%clk 0:00:08.9]} 0-1

[Event "*** Titled Tuesday Blitz"]
[Site "Chess.com"]
[Date "2018.09.04"]
[Round "9"]
[White "patrisiii123"]
[Black "Saitama_Hero"]
[Result "0-1"]
[WhiteElo "2304"]
[BlackElo "2211"]
[TimeControl "180+2"]
[EndTime "15:41:38 PDT"]
[Termination "Saitama_Hero won by resignation"]

1. e4 {[%clk 0:03:01.9]} 1... c5 {[%clk 0:02:59.5]} 2. Nf3 {[%clk 0:03:01.1]}
2... d6 {[%clk 0:03:00.8]} 3. d4 {[%clk 0:02:56.2]} 3... cxd4 {[%clk 0:03:02.7]}
4. Nxd4 {[%clk 0:02:56.5]} 4... Nf6 {[%clk 0:03:04.6]} 5. Nc3 {[%clk 0:02:54.6]}
5... a6 {[%clk 0:03:05.9]} 6. Be2 {[%clk 0:02:51.7]} 6... e5 {[%clk 0:03:05.4]}
7. Nb3 {[%clk 0:02:50.8]} 7... Be7 {[%clk 0:03:06.5]} 8. O-O {[%clk 0:02:49.5]}
8... Be6 {[%clk 0:03:06.9]} 9. f4 {[%clk 0:02:39.5]} 9... Qc7 {[%clk 0:03:02.7]}
10. Kh1 {[%clk 0:02:37.4]} 10... Nbd7 {[%clk 0:03:02.5]} 11. Be3 {[%clk
0:02:33]} 11... Rc8 {[%clk 0:03:00.3]} 12. a4 {[%clk 0:02:28.7]} 12... O-O
{[%clk 0:03:00.2]} 13. a5 {[%clk 0:02:23.8]} 13... Bc4 {[%clk 0:02:58.4]} 14.
Bxc4 {[%clk 0:02:18.8]} 14... Qxc4 {[%clk 0:03:00.3]} 15. Qf3 {[%clk 0:02:13.4]}
15... Rfe8 {[%clk 0:02:50.6]} 16. Ra4 {[%clk 0:02:08.8]} 16... Qc6 {[%clk
0:02:50.7]} 17. f5 {[%clk 0:01:42]} 17... h6 {[%clk 0:02:07.8]} 18. Nd2 {[%clk
0:01:41.8]} 18... Bd8 {[%clk 0:01:51.9]} 19. Rc4 {[%clk 0:01:40.9]} 19... Qxc4
{[%clk 0:01:49.6]} 20. Nxc4 {[%clk 0:01:42.8]} 20... Rxc4 {[%clk 0:01:49.1]} 21.
Qe2 {[%clk 0:01:38.2]} 21... Rc6 {[%clk 0:01:45.8]} 22. Nd5 {[%clk 0:01:38.7]}
22... Nxd5 {[%clk 0:01:44.4]} 23. exd5 {[%clk 0:01:40.6]} 23... Rc8 {[%clk
0:01:44.9]} 24. b4 {[%clk 0:01:39.3]} 24... Nf6 {[%clk 0:01:44.7]} 25. c4 {[%clk
0:01:39]} 25... Re7 {[%clk 0:01:40.5]} 26. Qd3 {[%clk 0:01:38.3]} 26... Rec7
{[%clk 0:01:30.6]} 27. c5 {[%clk 0:01:38.8]} 27... Be7 {[%clk 0:01:28.6]} 28.
cxd6 {[%clk 0:01:33.9]} 28... Bxd6 {[%clk 0:01:28.4]} 29. Bb6 {[%clk 0:01:25]}
29... Rc3 {[%clk 0:01:27.3]} 30. Qe2 {[%clk 0:01:26.3]} 30... Rc2 {[%clk
0:01:18.4]} 31. Qe1 {[%clk 0:01:23.7]} 31... Nxd5 {[%clk 0:01:08.4]} 32. b5
{[%clk 0:01:20.1]} 32... Nf4 {[%clk 0:00:59.5]} 33. g3 {[%clk 0:01:09.3]} 33...
Re2 {[%clk 0:00:42.6]} 34. Qd1 {[%clk 0:00:55.2]} 34... Rcc2 {[%clk 0:00:41.9]}
35. Rxf4 {[%clk 0:00:46.1]} 35... exf4 {[%clk 0:00:35.9]} 36. Qxd6 {[%clk
0:00:43.9]} 36... Rxh2+ {[%clk 0:00:29.3]} 37. Kg1 {[%clk 0:00:44.4]} 37...
Rhg2+ {[%clk 0:00:22.2]} 38. Kf1 {[%clk 0:00:45.1]} 38... f3 {[%clk 0:00:23.2]}
39. Qf4 {[%clk 0:00:35.4]} 39... Rgd2 {[%clk 0:00:17.1]} 40. Ke1 {[%clk
0:00:22.4]} 40... f2+ {[%clk 0:00:14.3]} 41. Bxf2 {[%clk 0:00:22.1]} 41... Rxf2
{[%clk 0:00:15.3]} 42. Qxf2 {[%clk 0:00:23.4]} 42... Rxf2 {[%clk 0:00:16.7]} 43.
Kxf2 {[%clk 0:00:25.3]} 43... axb5 {[%clk 0:00:17.4]} 44. Ke3 {[%clk 0:00:26.8]}
44... Kf8 {[%clk 0:00:17.4]} 45. Kd4 {[%clk 0:00:28.3]} 45... Ke7 {[%clk
0:00:17.5]} 46. Kc5 {[%clk 0:00:29.8]} 46... Kd7 {[%clk 0:00:17.6]} 47. Kxb5
{[%clk 0:00:31.4]} 47... Kc7 {[%clk 0:00:18.8]} 48. Kc5 {[%clk 0:00:32.9]} 48...
g6 {[%clk 0:00:16]} 49. f6 {[%clk 0:00:31.2]} 49... h5 {[%clk 0:00:17.4]} 50.
Kd5 {[%clk 0:00:32.4]} 50... g5 {[%clk 0:00:17.5]} 51. Ke5 {[%clk 0:00:33]}
51... h4 {[%clk 0:00:18.2]} 52. gxh4 {[%clk 0:00:32.5]} 52... gxh4 {[%clk
0:00:20.1]} 53. Kf4 {[%clk 0:00:34.2]} 53... Kd6 {[%clk 0:00:20.6]} 54. Kg4
{[%clk 0:00:35.9]} 54... Ke6 {[%clk 0:00:22]} 55. Kxh4 {[%clk 0:00:37.6]} 55...
Kxf6 {[%clk 0:00:23.5]} 56. Kg4 {[%clk 0:00:39.5]} 56... Ke5 {[%clk 0:00:24.5]}
57. Kf3 {[%clk 0:00:40.3]} 57... Kf5 {[%clk 0:00:22.7]} 58. Ke3 {[%clk
0:00:42.2]} 58... Kg4 {[%clk 0:00:22]} 59. Kd3 {[%clk 0:00:44.1]} 59... f5
{[%clk 0:00:20.1]} 60. Kc4 {[%clk 0:00:46]} 60... f4 {[%clk 0:00:20.8]} 61. Kb5
{[%clk 0:00:47.9]} 61... f3 {[%clk 0:00:22]} 62. Kb6 {[%clk 0:00:49.8]} 62... f2
{[%clk 0:00:23.3]} 63. Kxb7 {[%clk 0:00:51.7]} 63... f1=Q {[%clk 0:00:24.5]} 64.
a6 {[%clk 0:00:53.6]} 64... Qb5+ {[%clk 0:00:24.7]} 65. Ka7 {[%clk 0:00:54.5]}
65... Kf5 {[%clk 0:00:25.3]} 66. Ka8 {[%clk 0:00:49.6]} 66... Qxa6+ {[%clk
0:00:26.4]} 67. Kb8 {[%clk 0:00:51.1]} 67... Qb6+ {[%clk 0:00:27.2]} 68. Ka8
{[%clk 0:00:51.7]} 68... Qc6+ {[%clk 0:00:27.2]} 69. Kb8 {[%clk 0:00:52.9]}
69... Qd7 {[%clk 0:00:27.9]} 0-1

[Event "*** Titled Tuesday Blitz"]
[Site "Chess.com"]
[Date "2018.09.04"]
[Round "9"]
[White "dretch"]
[Black "nihalsarin"]
[Result "1/2-1/2"]
[WhiteElo "2778"]
[BlackElo "2856"]
[TimeControl "180+2"]
[EndTime "15:42:10 PDT"]
[Termination "Game drawn - insufficient material"]

1. d4 {[%clk 0:03:01.9]} 1... f5 {[%clk 0:03:00.2]} 2. g3 {[%clk 0:03:00.7]}
2... Nf6 {[%clk 0:03:01.1]} 3. Bg2 {[%clk 0:03:01.7]} 3... e6 {[%clk 0:03:02.7]}
4. Nf3 {[%clk 0:03:01.2]} 4... d5 {[%clk 0:03:03.6]} 5. O-O {[%clk 0:03:00.7]}
5... Bd6 {[%clk 0:03:05.1]} 6. c4 {[%clk 0:03:00.9]} 6... c6 {[%clk 0:03:05.6]}
7. b3 {[%clk 0:03:01.6]} 7... Qe7 {[%clk 0:03:06.2]} 8. Bb2 {[%clk 0:03:01.1]}
8... O-O {[%clk 0:03:07.4]} 9. Qc1 {[%clk 0:03:02.3]} 9... Ne4 {[%clk
0:03:04.8]} 10. Ba3 {[%clk 0:03:02.8]} 10... Nd7 {[%clk 0:03:06.4]} 11. Bxd6
{[%clk 0:02:59]} 11... Nxd6 {[%clk 0:03:08.3]} 12. Qa3 {[%clk 0:02:58.9]} 12...
Re8 {[%clk 0:03:07.5]} 13. Nbd2 {[%clk 0:02:54.3]} 13... Nf6 {[%clk 0:03:04.2]}
14. Ne5 {[%clk 0:02:54]} 14... Bd7 {[%clk 0:03:01.5]} 15. Rac1 {[%clk 0:02:51]}
15... Red8 {[%clk 0:03:02.3]} 16. e3 {[%clk 0:02:50.5]} 16... Be8 {[%clk
0:03:03]} 17. Rfe1 {[%clk 0:02:49.1]} 17... Bh5 {[%clk 0:03:02.5]} 18. h3 {[%clk
0:02:49.8]} 18... Kf8 {[%clk 0:03:02.6]} 19. Qb2 {[%clk 0:02:44.9]} 19... Nf7
{[%clk 0:03:00.3]} 20. Ndf3 {[%clk 0:02:44]} 20... Bxf3 {[%clk 0:03:00]} 21.
Nxf3 {[%clk 0:02:45.2]} 21... Ne4 {[%clk 0:03:00]} 22. b4 {[%clk 0:02:45.4]}
22... b5 {[%clk 0:02:16.4]} 23. cxb5 {[%clk 0:02:27.8]} 23... cxb5 {[%clk
0:02:18.3]} 24. Ne5 {[%clk 0:02:29.1]} 24... Rdc8 {[%clk 0:02:15.1]} 25. g4
{[%clk 0:01:53]} 25... g6 {[%clk 0:01:58.9]} 26. f3 {[%clk 0:01:41.5]} 26...
Ned6 {[%clk 0:01:57.2]} 27. Nd3 {[%clk 0:01:40.8]} 27... Nc4 {[%clk 0:01:56.5]}
28. Qf2 {[%clk 0:01:41.3]} 28... Kg7 {[%clk 0:01:12.9]} 29. e4 {[%clk
0:01:33.6]} 29... fxe4 {[%clk 0:00:59.5]} 30. fxe4 {[%clk 0:01:34.6]} 30... dxe4
{[%clk 0:01:01.4]} 31. Bxe4 {[%clk 0:01:31.4]} 31... Rab8 {[%clk 0:00:55.7]} 32.
Bg2 {[%clk 0:01:27.7]} 32... Rf8 {[%clk 0:00:42.1]} 33. Kh1 {[%clk 0:01:03.8]}
33... Nfe5 {[%clk 0:00:31.9]} 34. Qg3 {[%clk 0:01:04.6]} 34... Nxd3 {[%clk
0:00:32.8]} 35. Qxd3 {[%clk 0:01:05.6]} 35... Qxb4 {[%clk 0:00:29.2]} 36. Rxe6
{[%clk 0:01:04.4]} 36... Rbe8 {[%clk 0:00:30.8]} 37. d5 {[%clk 0:00:59.6]} 37...
Rxe6 {[%clk 0:00:17.8]} 38. dxe6 {[%clk 0:01:01.5]} 38... Qe7 {[%clk 0:00:18.7]}
39. Qd4+ {[%clk 0:00:59.4]} 39... Kg8 {[%clk 0:00:18]} 40. Re1 {[%clk
0:00:57.2]} 40... a6 {[%clk 0:00:16.6]} 41. g5 {[%clk 0:00:47.3]} 41... Nd6
{[%clk 0:00:17.1]} 42. Qb4 {[%clk 0:00:41.8]} 42... Nf5 {[%clk 0:00:18.2]} 43.
Qxe7 {[%clk 0:00:40.5]} 43... Nxe7 {[%clk 0:00:20.1]} 44. Rd1 {[%clk 0:00:39.4]}
44... Rc8 {[%clk 0:00:20.5]} 45. Bb7 {[%clk 0:00:30.4]} 45... Rc2 {[%clk
0:00:21.3]} 46. Rd8+ {[%clk 0:00:28.5]} 46... Kg7 {[%clk 0:00:21.8]} 47. Rd7
{[%clk 0:00:27.7]} 47... Kf8 {[%clk 0:00:22.6]} 48. Bxa6 {[%clk 0:00:20.5]}
48... Rxa2 {[%clk 0:00:21.6]} 49. Bxb5 {[%clk 0:00:21.7]} 49... Ra5 {[%clk
0:00:21]} 50. Rb7 {[%clk 0:00:22.1]} 50... Ra3 {[%clk 0:00:21.3]} 51. Kg2 {[%clk
0:00:15.8]} 51... Re3 {[%clk 0:00:22.3]} 52. Rb8+ {[%clk 0:00:12.8]} 52... Kg7
{[%clk 0:00:22.3]} 53. Bd7 {[%clk 0:00:13.5]} 53... h6 {[%clk 0:00:19.1]} 54.
gxh6+ {[%clk 0:00:13.8]} 54... Kxh6 {[%clk 0:00:21]} 55. Rf8 {[%clk 0:00:14.6]}
55... Nf5 {[%clk 0:00:21.6]} 56. Kf2 {[%clk 0:00:13.2]} 56... Re5 {[%clk
0:00:22.7]} 57. Kf3 {[%clk 0:00:10.5]} 57... Kg5 {[%clk 0:00:24.2]} 58. Rf7
{[%clk 0:00:09.5]} 58... Re3+ {[%clk 0:00:25.5]} 59. Kf2 {[%clk 0:00:10.6]}
59... Re5 {[%clk 0:00:27.4]} 60. Bc8 {[%clk 0:00:08.3]} 60... Kf4 {[%clk
0:00:27.6]} 61. h4 {[%clk 0:00:08.4]} 61... Kg4 {[%clk 0:00:24.8]} 62. Rf6
{[%clk 0:00:06.5]} 62... Kxh4 {[%clk 0:00:22.8]} 63. Rxg6 {[%clk 0:00:07]} 63...
Ne7 {[%clk 0:00:24.3]} 64. Rh6+ {[%clk 0:00:06.3]} 64... Kg5 {[%clk 0:00:25.8]}
65. Rh8 {[%clk 0:00:07.5]} 65... Nxc8 {[%clk 0:00:26.5]} 66. Rxc8 {[%clk
0:00:08.6]} 66... Rxe6 {[%clk 0:00:28.1]} 67. Rf8 {[%clk 0:00:09.7]} 67... Rf6+
{[%clk 0:00:29.1]} 68. Rxf6 {[%clk 0:00:10.9]} 68... Kxf6 {[%clk 0:00:31]}
1/2-1/2

[Event "*** Titled Tuesday Blitz"]
[Site "Chess.com"]
[Date "2018.09.04"]
[Round "9"]
[White "Zarikovs1999"]
[Black "Marcus_Harvey"]
[Result "1-0"]
[WhiteElo "2200"]
[BlackElo "2664"]
[TimeControl "180+2"]
[EndTime "15:42:37 PDT"]
[Termination "Zarikovs1999 won by resignation"]

1. e4 {[%clk 0:03:01.9]} 1... e6 {[%clk 0:03:01.2]} 2. d4 {[%clk 0:03:02]} 2...
d5 {[%clk 0:03:03.1]} 3. Bd3 {[%clk 0:03:03.1]} 3... c5 {[%clk 0:03:03.1]} 4.
exd5 {[%clk 0:03:01.2]} 4... exd5 {[%clk 0:03:03.1]} 5. Nf3 {[%clk 0:03:01]}
5... c4 {[%clk 0:03:03.5]} 6. Be2 {[%clk 0:03:01.7]} 6... Bd6 {[%clk 0:03:04.7]}
7. Nc3 {[%clk 0:02:58.8]} 7... Ne7 {[%clk 0:03:04.5]} 8. Be3 {[%clk 0:02:33]}
8... a6 {[%clk 0:03:01.1]} 9. a4 {[%clk 0:02:27.2]} 9... O-O {[%clk 0:02:58.1]}
10. O-O {[%clk 0:02:20.1]} 10... Nbc6 {[%clk 0:02:58.9]} 11. Qd2 {[%clk
0:02:16.7]} 11... Bf5 {[%clk 0:02:57.2]} 12. Bf4 {[%clk 0:02:16.9]} 12... Nb4
{[%clk 0:02:56.5]} 13. Bxd6 {[%clk 0:02:16.4]} 13... Qxd6 {[%clk 0:02:57.3]} 14.
Rac1 {[%clk 0:02:09.1]} 14... f6 {[%clk 0:02:58.4]} 15. b3 {[%clk 0:02:08.2]}
15... cxb3 {[%clk 0:02:56.3]} 16. cxb3 {[%clk 0:02:08]} 16... Rac8 {[%clk
0:02:54.5]} 17. Nh4 {[%clk 0:02:04.2]} 17... Be4 {[%clk 0:02:51.7]} 18. Nxe4
{[%clk 0:01:58.2]} 18... dxe4 {[%clk 0:02:52.8]} 19. Bc4+ {[%clk 0:01:44]} 19...
Kh8 {[%clk 0:02:52.9]} 20. g3 {[%clk 0:01:35.7]} 20... Nbc6 {[%clk 0:02:40.3]}
21. Rfd1 {[%clk 0:01:30.8]} 21... Rfd8 {[%clk 0:02:39.6]} 22. Qe3 {[%clk
0:01:26.9]} 22... f5 {[%clk 0:02:32]} 23. Ng2 {[%clk 0:01:27.2]} 23... Nxd4
{[%clk 0:02:25.5]} 24. Nf4 {[%clk 0:01:04.6]} 24... Nec6 {[%clk 0:02:26.1]} 25.
Ne6 {[%clk 0:01:00.4]} 25... Rd7 {[%clk 0:02:12.6]} 26. Ng5 {[%clk 0:00:32.2]}
26... Rf8 {[%clk 0:02:05.5]} 27. Ne6 {[%clk 0:00:20.8]} 27... Re8 {[%clk
0:01:53.1]} 28. Nxd4 {[%clk 0:00:19.8]} 28... Nxd4 {[%clk 0:01:52.7]} 29. Kg2
{[%clk 0:00:21.1]} 29... Red8 {[%clk 0:01:51.9]} 30. h4 {[%clk 0:00:21.1]} 30...
Qe5 {[%clk 0:01:45.9]} 31. Rd2 {[%clk 0:00:20.5]} 31... Nc6 {[%clk 0:01:31.5]}
32. Rxd7 {[%clk 0:00:19.9]} 32... Rxd7 {[%clk 0:01:32.2]} 33. Bxa6 {[%clk
0:00:20.8]} 33... Ne7 {[%clk 0:01:08.3]} 34. Bb5 {[%clk 0:00:20.2]} 34... Rd8
{[%clk 0:01:09.7]} 35. Qc5 {[%clk 0:00:19.5]} 35... Qf6 {[%clk 0:01:04.7]} 36.
Qc7 {[%clk 0:00:20]} 36... Rf8 {[%clk 0:01:03.5]} 37. Qc3 {[%clk 0:00:18.3]}
37... Qd6 {[%clk 0:00:46.8]} 38. Qc5 {[%clk 0:00:17.6]} 38... Qf6 {[%clk
0:00:47]} 39. Qc3 {[%clk 0:00:18.5]} 39... Qg6 {[%clk 0:00:45]} 40. Qe5 {[%clk
0:00:19.1]} 40... Ng8 {[%clk 0:00:42.4]} 41. Rc4 {[%clk 0:00:13.5]} 41... Nf6
{[%clk 0:00:33.6]} 42. a5 {[%clk 0:00:12.6]} 42... Qg4 {[%clk 0:00:29.6]} 43.
Qf4 {[%clk 0:00:09.8]} 43... Qxf4 {[%clk 0:00:21.7]} 44. gxf4 {[%clk 0:00:11.7]}
44... Nh5 {[%clk 0:00:23.4]} 45. Rc7 {[%clk 0:00:13]} 45... Nxf4+ {[%clk
0:00:24.7]} 46. Kf1 {[%clk 0:00:14.4]} 46... h5 {[%clk 0:00:17.2]} 47. Rxb7
{[%clk 0:00:15]} 47... Ne6 {[%clk 0:00:15.9]} 48. a6 {[%clk 0:00:14.9]} 48...
Nc5 {[%clk 0:00:17.4]} 49. Rc7 {[%clk 0:00:16.1]} 49... Ne6 {[%clk 0:00:16.9]}
50. Re7 {[%clk 0:00:16.2]} 50... Nd4 {[%clk 0:00:18.1]} 51. Bc4 {[%clk
0:00:17.5]} 51... Kh7 {[%clk 0:00:15.2]} 52. a7 {[%clk 0:00:18.8]} 52... Nc6
{[%clk 0:00:16.4]} 53. Rc7 {[%clk 0:00:18.9]} 53... Nxa7 {[%clk 0:00:17.4]} 54.
Rxa7 {[%clk 0:00:19.6]} 54... Kg6 {[%clk 0:00:18.8]} 55. Ra6+ {[%clk 0:00:19.8]}
55... Kh7 {[%clk 0:00:19.9]} 56. Re6 {[%clk 0:00:19.6]} 56... g6 {[%clk
0:00:19]} 57. Ke2 {[%clk 0:00:21]} 57... Rc8 {[%clk 0:00:20.2]} 58. Re7+ {[%clk
0:00:19.9]} 58... Kh6 {[%clk 0:00:20.6]} 59. Re6 {[%clk 0:00:20.2]} 59... Rc7
{[%clk 0:00:20]} 60. Rd6 {[%clk 0:00:21.3]} 60... Kg7 {[%clk 0:00:21.1]} 61. Kd2
{[%clk 0:00:22.6]} 61... Re7 {[%clk 0:00:21.6]} 62. b4 {[%clk 0:00:22]} 62... f4
{[%clk 0:00:22]} 63. b5 {[%clk 0:00:23]} 63... g5 {[%clk 0:00:23]} 64. hxg5
{[%clk 0:00:22.7]} 64... h4 {[%clk 0:00:24.1]} 65. Ra6 {[%clk 0:00:16.9]} 65...
Rc7 {[%clk 0:00:23.4]} 66. Kc3 {[%clk 0:00:16.1]} 66... h3 {[%clk 0:00:22.6]}
67. b6 {[%clk 0:00:14.7]} 67... Rb7 {[%clk 0:00:19.7]} 68. Bd5 {[%clk
0:00:13.4]} 68... h2 {[%clk 0:00:21.1]} 69. Bxe4 {[%clk 0:00:13.8]} 69... Re7
{[%clk 0:00:20.8]} 70. Ra7 {[%clk 0:00:14.1]} 1-0

[Event "*** Titled Tuesday Blitz"]
[Site "Chess.com"]
[Date "2018.09.04"]
[Round "10"]
[White "MITerryble"]
[Black "A-Fier"]
[Result "1-0"]
[WhiteElo "2775"]
[BlackElo "2761"]
[TimeControl "180+2"]
[EndTime "15:44:25 PDT"]
[Termination "MITerryble won by resignation"]

1. e4 {[%clk 0:02:55.6]} 1... c5 {[%clk 0:03:01.9]} 2. Nf3 {[%clk 0:02:56.5]}
2... Nc6 {[%clk 0:03:03.1]} 3. Bb5 {[%clk 0:02:54.3]} 3... d6 {[%clk 0:03:03.9]}
4. O-O {[%clk 0:02:54.8]} 4... Bd7 {[%clk 0:03:05.2]} 5. Re1 {[%clk 0:02:55.5]}
5... Nf6 {[%clk 0:03:06.7]} 6. c3 {[%clk 0:02:56.2]} 6... a6 {[%clk 0:03:08]} 7.
Bf1 {[%clk 0:02:57.3]} 7... Bg4 {[%clk 0:03:09.1]} 8. h3 {[%clk 0:02:58.5]} 8...
Bh5 {[%clk 0:03:09.7]} 9. g4 {[%clk 0:02:59.5]} 9... Bg6 {[%clk 0:03:10.5]} 10.
d4 {[%clk 0:03:01]} 10... cxd4 {[%clk 0:03:11.2]} 11. cxd4 {[%clk 0:03:02.1]}
11... d5 {[%clk 0:03:11.7]} 12. exd5 {[%clk 0:03:01.3]} 12... Nxd5 {[%clk
0:03:12.4]} 13. Nc3 {[%clk 0:02:54.8]} 13... e6 {[%clk 0:03:12.8]} 14. Qb3
{[%clk 0:02:55.9]} 14... Na5 {[%clk 0:03:05.4]} 15. Qxd5 {[%clk 0:02:56.1]} 1-0

[Event "*** Titled Tuesday Blitz"]
[Site "Chess.com"]
[Date "2018.09.04"]
[Round "10"]
[White "akretchetov"]
[Black "area_5"]
[Result "1-0"]
[WhiteElo "2243"]
[BlackElo "2550"]
[TimeControl "180+2"]
[EndTime "15:45:43 PDT"]
[Termination "akretchetov won by resignation"]

1. Nf3 {[%clk 0:03:01.9]} 1... g6 {[%clk 0:03:01.9]} 2. e4 {[%clk 0:03:02.5]}
2... Bg7 {[%clk 0:03:02.9]} 3. c4 {[%clk 0:03:03.7]} 3... c5 {[%clk 0:03:03.8]}
4. d4 {[%clk 0:03:04.8]} 4... cxd4 {[%clk 0:03:03.2]} 5. Nxd4 {[%clk 0:03:06]}
5... Nc6 {[%clk 0:03:04.6]} 6. Be3 {[%clk 0:03:06.9]} 6... d6 {[%clk 0:03:05.1]}
7. Nc3 {[%clk 0:03:07.6]} 7... Nf6 {[%clk 0:03:06.2]} 8. Be2 {[%clk 0:03:08]}
8... Nxd4 {[%clk 0:03:06.8]} 9. Bxd4 {[%clk 0:03:08.6]} 9... Bd7 {[%clk
0:03:08.7]} 10. O-O {[%clk 0:03:06.8]} 10... Bc6 {[%clk 0:03:09.9]} 11. f3
{[%clk 0:03:05.3]} 11... O-O {[%clk 0:03:10.9]} 12. Qd2 {[%clk 0:03:05.8]} 12...
Nd7 {[%clk 0:03:10.9]} 13. Bf2 {[%clk 0:03:06.6]} 13... a5 {[%clk 0:03:11.9]}
14. b3 {[%clk 0:03:07.4]} 14... Nc5 {[%clk 0:03:10]} 15. Rab1 {[%clk 0:03:07.7]}
15... Be5 {[%clk 0:03:09.7]} 16. Bd1 {[%clk 0:03:05.3]} 16... Ne6 {[%clk
0:03:07.8]} 17. Bc2 {[%clk 0:03:00.9]} 17... Bf4 {[%clk 0:03:04.5]} 18. Qe2
{[%clk 0:02:51]} 18... Be5 {[%clk 0:03:02.4]} 19. Qd2 {[%clk 0:02:41.7]} 19...
Re8 {[%clk 0:03:00.1]} 20. Nd5 {[%clk 0:02:40.1]} 20... Bxd5 {[%clk 0:02:58.9]}
21. exd5 {[%clk 0:02:34]} 21... Nc5 {[%clk 0:02:59.9]} 22. Rfe1 {[%clk
0:02:22.8]} 22... Qd7 {[%clk 0:02:55.8]} 23. Bxc5 {[%clk 0:02:14.3]} 1-0

[Event "*** Titled Tuesday Blitz"]
[Site "Chess.com"]
[Date "2018.09.04"]
[Round "10"]
[White "maciek_92"]
[Black "dretch"]
[Result "0-1"]
[WhiteElo "2671"]
[BlackElo "2786"]
[TimeControl "180+2"]
[EndTime "15:46:01 PDT"]
[Termination "dretch won by resignation"]

1. c4 {[%clk 0:03:01.9]} 1... c6 {[%clk 0:02:56.9]} 2. g3 {[%clk 0:03:01.7]}
2... d5 {[%clk 0:02:57.6]} 3. b3 {[%clk 0:03:03.3]} 3... e5 {[%clk 0:02:57.5]}
4. Bg2 {[%clk 0:02:57.5]} 4... Nf6 {[%clk 0:02:56.2]} 5. Bb2 {[%clk 0:02:58.3]}
5... Bd6 {[%clk 0:02:57.1]} 6. Nf3 {[%clk 0:02:53.5]} 6... e4 {[%clk 0:02:56.4]}
7. Nd4 {[%clk 0:02:53.8]} 7... h5 {[%clk 0:02:54.8]} 8. cxd5 {[%clk 0:02:54]}
8... cxd5 {[%clk 0:02:51.6]} 9. Nb5 {[%clk 0:02:38.2]} 9... h4 {[%clk
0:02:50.1]} 10. Nxd6+ {[%clk 0:02:36.2]} 10... Qxd6 {[%clk 0:02:51]} 11. Qc2
{[%clk 0:02:34.9]} 11... Nc6 {[%clk 0:02:50.8]} 12. Nc3 {[%clk 0:02:35]} 12...
Nd4 {[%clk 0:02:43.8]} 13. Qc1 {[%clk 0:02:33]} 13... Bg4 {[%clk 0:02:38]} 14.
h3 {[%clk 0:02:28.3]} 14... hxg3 {[%clk 0:02:36]} 15. hxg4 {[%clk 0:02:22.9]}
15... gxf2+ {[%clk 0:02:36.7]} 16. Kxf2 {[%clk 0:02:05.6]} 16... Nxg4+ {[%clk
0:02:37.3]} 17. Kf1 {[%clk 0:01:57.8]} 17... Qf4+ {[%clk 0:02:34.2]} 0-1